[Event "Titled Tuesday Blitz May 9 Late 2023"]
[White "FuenfgegenWilly"]
[Black "Kaplan, Avi Harrison"]
[BlackFideId "30934559"]
[WhiteElo "2313"]
[BlackElo "1983"]
[Result "1-0"]
[Round "04"]
[TimeControl "180+2"]
[Date "2023.05.09"]
[WhiteClock "0:00:30"]
[BlackClock "0:00:10"]

1. Nf3 {[%clk 0:02:59]}  g5 {[%clk 0:02:58]} 2. Nxg5 {[%clk 0:02:58]}  e5 {[%clk 0:02:58]} 3. Nf3 {[%clk 0:02:59]}  e4 {[%clk 0:02:58]} 4. Ng1 {[%clk 0:02:59]}  d5 {[%clk 0:02:58]} 5. d3 {[%clk 0:02:57]}  Nf6 {[%clk 0:02:56]} 6. Bg5 {[%clk 0:02:53]}  Bc5 {[%clk 0:02:54]} 7. d4 {[%clk 0:02:53]}  Bd6 {[%clk 0:02:44]} 8. e3 {[%clk 0:02:50]}  h6 {[%clk 0:02:41]} 9. Bh4 {[%clk 0:02:51]}  c6 {[%clk 0:02:39]} 10. c4 {[%clk 0:02:49]}  Rg8 {[%clk 0:02:39]} 11. Bg3 {[%clk 0:02:49]}  Bg4 {[%clk 0:02:36]} 12. Qb3 {[%clk 0:02:47]}  Na6 {[%clk 0:02:27]} 13. Qxb7 {[%clk 0:02:22]}  Nb4 {[%clk 0:02:16]} 14. Bxd6 {[%clk 0:02:09]}  Nc2+ {[%clk 0:02:04]} 15. Kd2 {[%clk 0:02:09]}  Nxa1 {[%clk 0:02:05]} 16. Be7 {[%clk 0:01:58]}  Qb8 {[%clk 0:01:37]} 17. Qxb8+ {[%clk 0:01:32]}  Rxb8 {[%clk 0:01:38]} 18. Ba3 {[%clk 0:01:32]}  Kd7 {[%clk 0:01:16]} 19. Nc3 {[%clk 0:01:04]}  Be6 {[%clk 0:01:08]} 20. c5 {[%clk 0:01:00]}  Ng4 {[%clk 0:01:02]} 21. Nh3 {[%clk 0:01:00]}  Nf6 {[%clk 0:00:46]} 22. Nf4 {[%clk 0:00:59]}  Ng4 {[%clk 0:00:45]} 23. Be2 {[%clk 0:00:52]}  Nb3+ {[%clk 0:00:39]} 24. axb3 {[%clk 0:00:46]}  Nxf2 {[%clk 0:00:40]} 25. Rf1 {[%clk 0:00:46]}  Nd3 {[%clk 0:00:38]} 26. Bxd3 {[%clk 0:00:43]}  exd3 {[%clk 0:00:38]} 27. b4 {[%clk 0:00:43]}  Bf5 {[%clk 0:00:34]} 28. b5 {[%clk 0:00:41]}  cxb5 {[%clk 0:00:31]} 29. Ncxd5 {[%clk 0:00:41]}  a5 {[%clk 0:00:29]} 30. Nf6+ {[%clk 0:00:41]}  Kc6 {[%clk 0:00:28]} 31. Nxg8 {[%clk 0:00:41]}  Rxg8 {[%clk 0:00:29]} 32. b3 {[%clk 0:00:38]}  b4 {[%clk 0:00:28]} 33. Bb2 {[%clk 0:00:38]}  Be4 {[%clk 0:00:29]} 34. g3 {[%clk 0:00:38]}  f5 {[%clk 0:00:28]} 35. Nxd3 {[%clk 0:00:38]}  Kd5 {[%clk 0:00:27]} 36. Nf4+ {[%clk 0:00:36]}  Kc6 {[%clk 0:00:27]} 37. Rd1 {[%clk 0:00:33]}  a4 {[%clk 0:00:26]} 38. bxa4 {[%clk 0:00:32]}  Ra8 {[%clk 0:00:27]} 39. Ra1 {[%clk 0:00:32]}  Ra5 {[%clk 0:00:27]} 40. Nd3 {[%clk 0:00:31]}  b3 {[%clk 0:00:25]} 41. Ne5+ {[%clk 0:00:30]}  Kd5 {[%clk 0:00:25]} 42. Kc3 {[%clk 0:00:30]}  Ra8 {[%clk 0:00:24]} 43. Kxb3 {[%clk 0:00:29]}  Rb8+ {[%clk 0:00:24]} 44. Kc3 {[%clk 0:00:29]}  h5 {[%clk 0:00:23]} 45. a5 {[%clk 0:00:28]}  Ke6 {[%clk 0:00:22]} 46. a6 {[%clk 0:00:28]}  Ba8 {[%clk 0:00:20]} 47. a7 {[%clk 0:00:28]}  Rh8 {[%clk 0:00:20]} 48. Ra6+ {[%clk 0:00:28]}  Kd5 {[%clk 0:00:19]} 49. Kd3 {[%clk 0:00:27]}  Rd8 {[%clk 0:00:17]} 50. Rd6+ {[%clk 0:00:27]}  Rxd6 {[%clk 0:00:17]} 51. cxd6 {[%clk 0:00:28]}  Kxd6 {[%clk 0:00:18]} 52. Ng6 {[%clk 0:00:28]}  Kc7 {[%clk 0:00:18]} 53. Nf4 {[%clk 0:00:29]}  Kb6 {[%clk 0:00:18]} 54. Nxh5 {[%clk 0:00:29]}  Kxa7 {[%clk 0:00:18]} 55. Nf4 {[%clk 0:00:30]}  Kb6 {[%clk 0:00:19]} 56. Kc4 {[%clk 0:00:31]}  Kc6 {[%clk 0:00:18]} 57. h4 {[%clk 0:00:31]}  Kd6 {[%clk 0:00:18]} 58. d5 {[%clk 0:00:32]}  Bb7 {[%clk 0:00:18]} 59. Kd4 {[%clk 0:00:33]}  Ke7 {[%clk 0:00:19]} 60. Ba3+ {[%clk 0:00:33]}  Kf6 {[%clk 0:00:18]} 61. Kc5 {[%clk 0:00:34]}  Bc8 {[%clk 0:00:18]} 62. Kd6 {[%clk 0:00:34]}  Kg7 {[%clk 0:00:19]} 63. Kc7 {[%clk 0:00:34]}  Ba6 {[%clk 0:00:19]} 64. d6 {[%clk 0:00:35]}  Bc4 {[%clk 0:00:17]} 65. d7 {[%clk 0:00:36]}  Bf7 {[%clk 0:00:17]} 66. d8=Q {[%clk 0:00:35]}  Kh7 {[%clk 0:00:18]} 67. Qg5 {[%clk 0:00:34]}  Kh8 {[%clk 0:00:16]} 68. Qxf5 {[%clk 0:00:33]}  Kg7 {[%clk 0:00:16]} 69. Bf8+ {[%clk 0:00:31]}  Kg8 {[%clk 0:00:13]} 70. Ne6 {[%clk 0:00:30]}  Kh8 {[%clk 0:00:10]} 71. Qf6+ {[%clk 0:00:29]}  Kg8 {[%clk 0:00:10]} 72. Qg7# {[%clk 0:00:30]} 1-0


[Site "https://www.chess.com"]

[Event "Titled Tuesday Blitz May 9 Late 2023"]
[White "Brueckner, Thomas"]
[Black "Marcziter, Dmitrii"]
[WhiteFideId "4600452"]
[BlackFideId "13900765"]
[WhiteElo "2322"]
[BlackElo "2162"]
[Result "0-1"]
[Round "04"]
[TimeControl "180+2"]
[Date "2023.05.09"]
[WhiteClock "0:00:00"]
[BlackClock "0:00:27"]

1. Nf3 {[%clk 0:03:00]}  Nf6 {[%clk 0:02:58]} 2. g3 {[%clk 0:02:59]}  g6 {[%clk 0:02:58]} 3. b3 {[%clk 0:02:56]}  Bg7 {[%clk 0:02:58]} 4. Bb2 {[%clk 0:02:56]}  O-O {[%clk 0:02:58]} 5. Bg2 {[%clk 0:02:57]}  d6 {[%clk 0:02:58]} 6. O-O {[%clk 0:02:54]}  e5 {[%clk 0:02:57]} 7. c4 {[%clk 0:02:47]}  Nc6 {[%clk 0:02:55]} 8. Nc3 {[%clk 0:02:45]}  Nh5 {[%clk 0:02:51]} 9. Nd5 {[%clk 0:02:40]}  f5 {[%clk 0:02:50]} 10. d4 {[%clk 0:02:36]}  e4 {[%clk 0:02:50]} 11. Ne1 {[%clk 0:02:36]}  Ne7 {[%clk 0:02:44]} 12. Nxe7+ {[%clk 0:02:29]}  Qxe7 {[%clk 0:02:44]} 13. e3 {[%clk 0:02:29]}  a5 {[%clk 0:02:37]} 14. Qd2 {[%clk 0:02:25]}  a4 {[%clk 0:02:35]} 15. b4 {[%clk 0:02:18]}  a3 {[%clk 0:02:35]} 16. Bc3 {[%clk 0:02:18]}  c6 {[%clk 0:02:32]} 17. Nc2 {[%clk 0:02:13]}  g5 {[%clk 0:02:27]} 18. Rfe1 {[%clk 0:02:02]}  Qf7 {[%clk 0:02:25]} 19. d5 {[%clk 0:01:54]}  cxd5 {[%clk 0:02:17]} 20. Bxg7 {[%clk 0:01:50]}  Nxg7 {[%clk 0:02:12]} 21. cxd5 {[%clk 0:01:49]}  Bd7 {[%clk 0:02:03]} 22. Rac1 {[%clk 0:01:42]}  Rfc8 {[%clk 0:01:51]} 23. Red1 {[%clk 0:01:21]}  Ne8 {[%clk 0:01:46]} 24. Nd4 {[%clk 0:01:05]}  Ba4 {[%clk 0:01:44]} 25. Rxc8 {[%clk 0:01:03]}  Rxc8 {[%clk 0:01:42]} 26. Rc1 {[%clk 0:01:03]}  Bd7 {[%clk 0:01:36]} 27. Rxc8 {[%clk 0:00:57]}  Bxc8 {[%clk 0:01:36]} 28. Qc3 {[%clk 0:00:54]}  Qc7 {[%clk 0:01:34]} 29. Qxc7 {[%clk 0:00:51]}  Nxc7 {[%clk 0:01:34]} 30. Bf1 {[%clk 0:00:51]}  Kg7 {[%clk 0:01:27]} 31. Bc4 {[%clk 0:00:50]}  Kf6 {[%clk 0:01:26]} 32. Nc2 {[%clk 0:00:49]}  b5 {[%clk 0:01:24]} 33. Bb3 {[%clk 0:00:45]}  Bb7 {[%clk 0:01:15]} 34. Nxa3 {[%clk 0:00:44]}  Ke5 {[%clk 0:01:09]} 35. Nc2 {[%clk 0:00:37]}  Bxd5 {[%clk 0:01:06]} 36. Kf1 {[%clk 0:00:32]}  Bxb3 {[%clk 0:01:03]} 37. axb3 {[%clk 0:00:32]}  Ne6 {[%clk 0:01:01]} 38. Na3 {[%clk 0:00:25]}  Nc7 {[%clk 0:00:59]} 39. Ke2 {[%clk 0:00:24]}  d5 {[%clk 0:00:58]} 40. Nc2 {[%clk 0:00:23]}  f4 {[%clk 0:00:55]} 41. exf4+ {[%clk 0:00:17]}  gxf4 {[%clk 0:00:55]} 42. gxf4+ {[%clk 0:00:16]}  Kxf4 {[%clk 0:00:55]} 43. Nd4 {[%clk 0:00:16]}  h5 {[%clk 0:00:51]} 44. Kf1 {[%clk 0:00:09]}  Ke5 {[%clk 0:00:47]} 45. Nc6+ {[%clk 0:00:07]}  Kd6 {[%clk 0:00:41]} 46. Nd4 {[%clk 0:00:07]}  Ke5 {[%clk 0:00:38]} 47. Nc6+ {[%clk 0:00:07]}  Kf4 {[%clk 0:00:36]} 48. Nd4 {[%clk 0:00:06]}  Na6 {[%clk 0:00:29]} 49. Nxb5 {[%clk 0:00:05]}  Nxb4 {[%clk 0:00:28]} 50. Nd4 {[%clk 0:00:04]}  Ke5 {[%clk 0:00:28]} 51. Ne2 {[%clk 0:00:00]}  d4 {[%clk 0:00:27]} 0-1


[Site "https://www.chess.com"]

[Event "Titled Tuesday Blitz May 9 Late 2023"]
[White "Torres Dominguez, David"]
[Black "Zampronha, Wladimir Camilo"]
[WhiteFideId "2220857"]
[BlackFideId "2103087"]
[WhiteElo "1999"]
[BlackElo "2176"]
[Result "0-1"]
[Round "04"]
[TimeControl "180+2"]
[Date "2023.05.09"]
[WhiteClock "0:00:03"]
[BlackClock "0:00:12"]

1. e4 {[%clk 0:03:00]}  c5 {[%clk 0:02:57]} 2. Nc3 {[%clk 0:03:00]}  Nc6 {[%clk 0:02:57]} 3. Bb5 {[%clk 0:03:00]}  Nd4 {[%clk 0:02:53]} 4. Bc4 {[%clk 0:03:00]}  e6 {[%clk 0:02:53]} 5. Nge2 {[%clk 0:02:57]}  d6 {[%clk 0:02:49]} 6. O-O {[%clk 0:02:54]}  g6 {[%clk 0:02:48]} 7. Nxd4 {[%clk 0:02:53]}  cxd4 {[%clk 0:02:48]} 8. Ne2 {[%clk 0:02:52]}  Bg7 {[%clk 0:02:48]} 9. Bb5+ {[%clk 0:02:45]}  Bd7 {[%clk 0:02:47]} 10. Bxd7+ {[%clk 0:02:45]}  Qxd7 {[%clk 0:02:48]} 11. d3 {[%clk 0:02:45]}  Ne7 {[%clk 0:02:47]} 12. f4 {[%clk 0:02:33]}  O-O {[%clk 0:02:45]} 13. Bd2 {[%clk 0:02:28]}  Rac8 {[%clk 0:02:45]} 14. c3 {[%clk 0:02:27]}  Qb5 {[%clk 0:02:40]} 15. c4 {[%clk 0:02:25]}  Qd7 {[%clk 0:02:16]} 16. Ng3 {[%clk 0:02:24]}  f5 {[%clk 0:02:15]} 17. Qe2 {[%clk 0:02:20]}  Rfe8 {[%clk 0:02:13]} 18. Rae1 {[%clk 0:02:16]}  Nc6 {[%clk 0:02:12]} 19. b3 {[%clk 0:02:11]}  d5 {[%clk 0:02:07]} 20. exd5 {[%clk 0:02:08]}  exd5 {[%clk 0:02:07]} 21. Qf3 {[%clk 0:02:08]}  dxc4 {[%clk 0:02:04]} 22. bxc4 {[%clk 0:02:08]}  Bf8 {[%clk 0:01:43]} 23. Ne2 {[%clk 0:01:58]}  Re7 {[%clk 0:01:31]} 24. Nc1 {[%clk 0:01:58]}  Rce8 {[%clk 0:01:29]} 25. Qf2 {[%clk 0:01:51]}  Rxe1 {[%clk 0:01:10]} 26. Rxe1 {[%clk 0:01:50]}  Rxe1+ {[%clk 0:01:10]} 27. Qxe1 {[%clk 0:01:51]}  Qe7 {[%clk 0:01:10]} 28. Nb3 {[%clk 0:01:47]}  Qxe1+ {[%clk 0:01:03]} 29. Bxe1 {[%clk 0:01:47]}  b6 {[%clk 0:01:02]} 30. Bf2 {[%clk 0:01:45]}  Bg7 {[%clk 0:01:02]} 31. Kf1 {[%clk 0:01:45]}  Kf7 {[%clk 0:01:02]} 32. Ke2 {[%clk 0:01:45]}  Ke6 {[%clk 0:01:03]} 33. Kf3 {[%clk 0:01:45]}  Kd6 {[%clk 0:01:00]} 34. h3 {[%clk 0:01:45]}  a5 {[%clk 0:01:00]} 35. a4 {[%clk 0:01:44]}  Nb4 {[%clk 0:00:51]} 36. Ke2 {[%clk 0:01:34]}  Nc6 {[%clk 0:00:45]} 37. g3 {[%clk 0:01:34]}  Bf6 {[%clk 0:00:44]} 38. g4 {[%clk 0:01:33]}  h5 {[%clk 0:00:42]} 39. gxh5 {[%clk 0:01:31]}  gxh5 {[%clk 0:00:42]} 40. Nd2 {[%clk 0:01:26]}  Kc5 {[%clk 0:00:41]} 41. Nf3 {[%clk 0:01:25]}  Kb4 {[%clk 0:00:39]} 42. Bh4 {[%clk 0:01:25]}  Bg7 {[%clk 0:00:34]} 43. Bg5 {[%clk 0:01:19]}  Kxa4 {[%clk 0:00:34]} 44. Nh4 {[%clk 0:01:19]}  Kb3 {[%clk 0:00:33]} 45. Nxf5 {[%clk 0:01:19]}  Bf8 {[%clk 0:00:26]} 46. Bf6 {[%clk 0:01:15]}  Bc5 {[%clk 0:00:24]} 47. Kd2 {[%clk 0:01:07]}  Kb2 {[%clk 0:00:24]} 48. Ng3 {[%clk 0:01:07]}  a4 {[%clk 0:00:24]} 49. Ne2 {[%clk 0:01:07]}  a3 {[%clk 0:00:24]} 50. Nc1 {[%clk 0:01:06]}  Bb4+ {[%clk 0:00:21]} 51. Kd1 {[%clk 0:01:05]}  Bc3 {[%clk 0:00:19]} 52. f5 {[%clk 0:01:03]}  Nb4 {[%clk 0:00:19]} 53. Be5 {[%clk 0:00:58]}  Na2 {[%clk 0:00:19]} 54. Nxa2 {[%clk 0:00:57]}  Kxa2 {[%clk 0:00:19]} 55. f6 {[%clk 0:00:57]}  Kb1 {[%clk 0:00:15]} 56. f7 {[%clk 0:00:57]}  Bb4 {[%clk 0:00:15]} 57. Bxd4 {[%clk 0:00:56]}  a2 {[%clk 0:00:16]} 58. Bc3 {[%clk 0:00:40]}  Bxc3 {[%clk 0:00:13]} 59. f8=Q {[%clk 0:00:39]}  a1=Q {[%clk 0:00:14]} 60. Qb8 {[%clk 0:00:31]}  Kb2+ {[%clk 0:00:14]} 61. Ke2 {[%clk 0:00:31]}  Qe1+ {[%clk 0:00:14]} 62. Kf3 {[%clk 0:00:32]}  Qf1+ {[%clk 0:00:12]} 63. Ke4 {[%clk 0:00:31]}  Qe2+ {[%clk 0:00:12]} 64. Kd5 {[%clk 0:00:28]}  Qxd3+ {[%clk 0:00:12]} 65. Ke6 {[%clk 0:00:21]}  Qxc4+ {[%clk 0:00:12]} 66. Ke7 {[%clk 0:00:20]}  Bd4 {[%clk 0:00:13]} 67. Qh2+ {[%clk 0:00:19]}  Qc2 {[%clk 0:00:12]} 68. Qb8 {[%clk 0:00:10]}  Qc5+ {[%clk 0:00:12]} 69. Kf7 {[%clk 0:00:09]}  b5 {[%clk 0:00:12]} 70. Qh2+ {[%clk 0:00:08]}  Qc2 {[%clk 0:00:12]} 71. Qb8 {[%clk 0:00:09]}  Qc4+ {[%clk 0:00:11]} 72. Kg6 {[%clk 0:00:09]}  b4 {[%clk 0:00:12]} 73. Qh2+ {[%clk 0:00:07]}  Qc2+ {[%clk 0:00:12]} 74. Qxc2+ {[%clk 0:00:03]}  Kxc2 {[%clk 0:00:12]} 0-1


[Site "https://www.chess.com"]

[Event "Titled Tuesday Blitz May 9 Late 2023"]
[White "Maluco_do_Natal_00"]
[Black "Kopacz, Grzegorz"]
[BlackFideId "1109880"]
[WhiteElo "2028"]
[BlackElo "2037"]
[Result "1/2-1/2"]
[Round "04"]
[TimeControl "180+2"]
[Date "2023.05.09"]
[WhiteClock "0:00:14"]
[BlackClock "0:01:23"]

1. e4 {[%clk 0:03:00]}  e5 {[%clk 0:02:59]} 2. Nf3 {[%clk 0:03:00]}  Nf6 {[%clk 0:02:59]} 3. Nxe5 {[%clk 0:02:59]}  d6 {[%clk 0:02:59]} 4. Nf3 {[%clk 0:02:59]}  Nxe4 {[%clk 0:02:59]} 5. Nc3 {[%clk 0:02:59]}  Nxc3 {[%clk 0:02:57]} 6. dxc3 {[%clk 0:03:00]}  d5 {[%clk 0:02:57]} 7. Bd3 {[%clk 0:02:57]}  c6 {[%clk 0:02:55]} 8. Bg5 {[%clk 0:02:54]}  Be7 {[%clk 0:02:53]} 9. Bxe7 {[%clk 0:02:36]}  Qxe7+ {[%clk 0:02:52]} 10. Qe2 {[%clk 0:02:36]}  Qxe2+ {[%clk 0:02:52]} 11. Kxe2 {[%clk 0:02:35]}  O-O {[%clk 0:02:53]} 12. Rae1 {[%clk 0:02:34]}  Bg4 {[%clk 0:02:53]} 13. Kd2 {[%clk 0:02:30]}  Nd7 {[%clk 0:02:52]} 14. Ne5 {[%clk 0:02:29]}  Nxe5 {[%clk 0:02:51]} 15. Rxe5 {[%clk 0:02:29]}  Rae8 {[%clk 0:02:52]} 16. Rhe1 {[%clk 0:02:29]}  Rxe5 {[%clk 0:02:52]} 17. Rxe5 {[%clk 0:02:29]}  Be6 {[%clk 0:02:53]} 18. f4 {[%clk 0:02:18]}  Re8 {[%clk 0:02:53]} 19. b4 {[%clk 0:02:03]}  f6 {[%clk 0:02:49]} 20. Re3 {[%clk 0:01:55]}  Bd7 {[%clk 0:02:49]} 21. Rxe8+ {[%clk 0:01:49]}  Bxe8 {[%clk 0:02:50]} 22. c4 {[%clk 0:01:50]}  Bf7 {[%clk 0:02:41]} 23. Kc3 {[%clk 0:01:50]}  Kf8 {[%clk 0:02:34]} 24. a4 {[%clk 0:01:48]}  Ke7 {[%clk 0:02:32]} 25. cxd5 {[%clk 0:01:46]}  Bxd5 {[%clk 0:02:29]} 26. g3 {[%clk 0:01:40]}  h5 {[%clk 0:02:25]} 27. Kd4 {[%clk 0:01:37]}  Kd6 {[%clk 0:02:17]} 28. c4 {[%clk 0:01:29]}  Bf3 {[%clk 0:02:17]} 29. a5 {[%clk 0:01:12]}  g5 {[%clk 0:02:15]} 30. Bf5 {[%clk 0:01:05]}  b6 {[%clk 0:02:09]} 31. axb6 {[%clk 0:01:04]}  axb6 {[%clk 0:02:09]} 32. c5+ {[%clk 0:01:04]}  bxc5+ {[%clk 0:02:02]} 33. bxc5+ {[%clk 0:01:05]}  Ke7 {[%clk 0:01:56]} 34. h4 {[%clk 0:00:43]}  gxh4 {[%clk 0:01:53]} 35. gxh4 {[%clk 0:00:42]}  Bg4 {[%clk 0:01:52]} 36. Be4 {[%clk 0:00:33]}  Bd7 {[%clk 0:01:47]} 37. Bg6 {[%clk 0:00:32]}  Bg4 {[%clk 0:01:45]} 38. Be4 {[%clk 0:00:28]}  Bd7 {[%clk 0:01:44]} 39. Bg6 {[%clk 0:00:27]}  Be8 {[%clk 0:01:33]} 40. Be4 {[%clk 0:00:26]}  Ke6 {[%clk 0:01:31]} 41. Ke3 {[%clk 0:00:14]}  Ke7 {[%clk 0:01:25]} 42. Kd4 {[%clk 0:00:14]}  Bd7 {[%clk 0:01:23]} 1/2-1/2


[Site "https://www.chess.com"]

[Event "Titled Tuesday Blitz May 9 Late 2023"]
[White "Castillo Pena, Patricia Evarista"]
[Black "Escalante Ramirez, Rafael"]
[WhiteFideId "6412106"]
[BlackFideId "3900177"]
[WhiteElo "1919"]
[BlackElo "2236"]
[Result "0-1"]
[Round "04"]
[TimeControl "180+2"]
[Date "2023.05.09"]
[WhiteClock "0:01:09"]
[BlackClock "0:01:37"]

1. d4 {[%clk 0:02:59]}  Nf6 {[%clk 0:02:59]} 2. Nf3 {[%clk 0:02:59]}  e6 {[%clk 0:02:58]} 3. e3 {[%clk 0:02:59]}  b6 {[%clk 0:02:57]} 4. Bd3 {[%clk 0:02:58]}  Bb7 {[%clk 0:02:56]} 5. Nbd2 {[%clk 0:02:58]}  c5 {[%clk 0:02:55]} 6. b3 {[%clk 0:02:58]}  Be7 {[%clk 0:02:46]} 7. Bb2 {[%clk 0:02:57]}  d6 {[%clk 0:02:43]} 8. O-O {[%clk 0:02:56]}  Nbd7 {[%clk 0:02:40]} 9. Qe2 {[%clk 0:02:49]}  O-O {[%clk 0:02:35]} 10. Rfd1 {[%clk 0:02:43]}  Qc7 {[%clk 0:02:33]} 11. Rac1 {[%clk 0:02:43]}  a6 {[%clk 0:02:29]} 12. c4 {[%clk 0:02:42]}  Rfd8 {[%clk 0:02:17]} 13. Ng5 {[%clk 0:02:33]}  h6 {[%clk 0:02:14]} 14. Nge4 {[%clk 0:02:25]}  Ne8 {[%clk 0:02:09]} 15. dxc5 {[%clk 0:02:13]}  bxc5 {[%clk 0:02:06]} 16. Qg4 {[%clk 0:01:59]}  Ne5 {[%clk 0:01:42]} 17. Qg3 {[%clk 0:01:09]}  Nxd3 {[%clk 0:01:37]} 0-1


[Site "https://www.chess.com"]

[Event "Titled Tuesday Blitz May 9 Late 2023"]
[White "Sanchez, Robert"]
[Black "Phillips, Rene"]
[WhiteFideId "2034360"]
[BlackFideId "2056275"]
[WhiteElo "1866"]
[BlackElo "2185"]
[Result "0-1"]
[Round "04"]
[TimeControl "180+2"]
[Date "2023.05.09"]
[WhiteClock "0:00:26"]
[BlackClock "0:00:27"]

1. e4 {[%clk 0:03:00]}  Nc6 {[%clk 0:02:58]} 2. Nf3 {[%clk 0:03:00]}  d5 {[%clk 0:02:58]} 3. exd5 {[%clk 0:03:00]}  Qxd5 {[%clk 0:02:59]} 4. Nc3 {[%clk 0:03:00]}  Qa5 {[%clk 0:03:00]} 5. Be2 {[%clk 0:03:01]}  Bg4 {[%clk 0:03:00]} 6. O-O {[%clk 0:03:01]}  O-O-O {[%clk 0:03:00]} 7. d3 {[%clk 0:03:02]}  Nf6 {[%clk 0:03:00]} 8. Bd2 {[%clk 0:03:01]}  Qf5 {[%clk 0:02:59]} 9. h3 {[%clk 0:03:00]}  h5 {[%clk 0:02:55]} 10. a3 {[%clk 0:02:55]}  e6 {[%clk 0:02:52]} 11. b4 {[%clk 0:02:50]}  Bd6 {[%clk 0:02:50]} 12. b5 {[%clk 0:02:50]}  Ne5 {[%clk 0:02:41]} 13. Nd4 {[%clk 0:02:49]}  Bxe2 {[%clk 0:02:34]} 14. Qxe2 {[%clk 0:02:49]}  Qg6 {[%clk 0:02:30]} 15. a4 {[%clk 0:02:43]}  Nfg4 {[%clk 0:02:16]} 16. Bf4 {[%clk 0:02:36]}  Qf6 {[%clk 0:02:02]} 17. Bg3 {[%clk 0:02:21]}  h4 {[%clk 0:01:50]} 18. Bxe5 {[%clk 0:02:11]}  Nxe5 {[%clk 0:01:49]} 19. Ne4 {[%clk 0:02:05]}  Qf4 {[%clk 0:01:48]} 20. Nxd6+ {[%clk 0:02:04]}  Rxd6 {[%clk 0:01:45]} 21. c3 {[%clk 0:02:04]}  Rhd8 {[%clk 0:01:32]} 22. a5 {[%clk 0:02:00]}  g5 {[%clk 0:01:27]} 23. Rfe1 {[%clk 0:01:58]}  Ng6 {[%clk 0:01:21]} 24. b6 {[%clk 0:01:55]}  a6 {[%clk 0:01:19]} 25. bxc7 {[%clk 0:01:54]}  Kxc7 {[%clk 0:01:18]} 26. Rab1 {[%clk 0:01:52]}  Qf6 {[%clk 0:01:04]} 27. Qb2 {[%clk 0:01:47]}  Rb8 {[%clk 0:00:53]} 28. Qb4 {[%clk 0:01:30]}  Nf4 {[%clk 0:00:50]} 29. Qc5+ {[%clk 0:01:09]}  Kd7 {[%clk 0:00:45]} 30. Red1 {[%clk 0:00:50]}  e5 {[%clk 0:00:41]} 31. Nf3 {[%clk 0:00:41]}  Rc6 {[%clk 0:00:38]} 32. Qxe5 {[%clk 0:00:26]}  Kc8 {[%clk 0:00:27]} 0-1


[Site "https://www.chess.com"]

[Event "Titled Tuesday Blitz May 9 Late 2023"]
[White "Kiseljova, Marya"]
[Black "Panico, Nick"]
[WhiteFideId "4155009"]
[BlackFideId "2026724"]
[WhiteElo "1831"]
[BlackElo "1982"]
[Result "0-1"]
[Round "04"]
[TimeControl "180+2"]
[Date "2023.05.09"]
[WhiteClock "0:01:19"]
[BlackClock "0:02:26"]

1. d4 {[%clk 0:03:00]}  f5 {[%clk 0:02:58]} 2. Nf3 {[%clk 0:02:59]}  Nf6 {[%clk 0:02:59]} 3. c4 {[%clk 0:02:58]}  d6 {[%clk 0:02:57]} 4. Nc3 {[%clk 0:02:58]}  g6 {[%clk 0:02:57]} 5. e3 {[%clk 0:02:54]}  Bg7 {[%clk 0:02:57]} 6. Bd3 {[%clk 0:02:52]}  O-O {[%clk 0:02:57]} 7. O-O {[%clk 0:02:52]}  Nc6 {[%clk 0:02:54]} 8. e4 {[%clk 0:02:42]}  fxe4 {[%clk 0:02:53]} 9. Nxe4 {[%clk 0:02:42]}  e5 {[%clk 0:02:53]} 10. dxe5 {[%clk 0:02:38]}  dxe5 {[%clk 0:02:49]} 11. Bg5 {[%clk 0:02:36]}  Bg4 {[%clk 0:02:45]} 12. Nxf6+ {[%clk 0:02:28]}  Bxf6 {[%clk 0:02:44]} 13. Bxf6 {[%clk 0:02:27]}  Qxf6 {[%clk 0:02:43]} 14. Be2 {[%clk 0:02:15]}  Rad8 {[%clk 0:02:41]} 15. Qb3 {[%clk 0:02:14]}  e4 {[%clk 0:02:36]} 16. c5+ {[%clk 0:01:50]}  Kg7 {[%clk 0:02:33]} 17. Qxb7 {[%clk 0:01:22]}  exf3 {[%clk 0:02:30]} 18. Bb5 {[%clk 0:01:21]}  fxg2 {[%clk 0:02:28]} 19. Rfe1 {[%clk 0:01:19]}  Qxf2# {[%clk 0:02:26]} 0-1


[Site "https://www.chess.com"]

[Event "Titled Tuesday Blitz May 9 Late 2023"]
[White "KSho99"]
[Black "Prado, Alexandra"]
[BlackFideId "3301346"]
[WhiteElo "2145"]
[BlackElo "1759"]
[Result "1-0"]
[Round "04"]
[TimeControl "180+2"]
[Date "2023.05.09"]
[WhiteClock "0:00:04"]
[BlackClock "0:00:00"]

1. Nf3 {[%clk 0:03:00]}  g6 {[%clk 0:02:50]} 2. d4 {[%clk 0:02:59]}  Nf6 {[%clk 0:02:50]} 3. b3 {[%clk 0:02:55]}  Bg7 {[%clk 0:02:46]} 4. Bb2 {[%clk 0:02:55]}  O-O {[%clk 0:02:38]} 5. Nbd2 {[%clk 0:02:47]}  d5 {[%clk 0:02:38]} 6. c4 {[%clk 0:02:43]}  c6 {[%clk 0:02:11]} 7. e3 {[%clk 0:02:17]}  a5 {[%clk 0:02:05]} 8. Bd3 {[%clk 0:02:05]}  Bg4 {[%clk 0:02:02]} 9. Qc2 {[%clk 0:02:00]}  Na6 {[%clk 0:01:43]} 10. a3 {[%clk 0:01:57]}  dxc4 {[%clk 0:01:16]} 11. bxc4 {[%clk 0:01:50]}  c5 {[%clk 0:01:06]} 12. d5 {[%clk 0:01:46]}  e6 {[%clk 0:01:04]} 13. Ne5 {[%clk 0:00:45]}  exd5 {[%clk 0:00:52]} 14. Nxg4 {[%clk 0:00:34]}  Nxg4 {[%clk 0:00:44]} 15. Bxg7 {[%clk 0:00:33]}  Kxg7 {[%clk 0:00:43]} 16. cxd5 {[%clk 0:00:27]}  Qxd5 {[%clk 0:00:30]} 17. Be4 {[%clk 0:00:23]}  Qe5 {[%clk 0:00:25]} 18. Rb1 {[%clk 0:00:19]}  Qf6 {[%clk 0:00:06]} 19. O-O {[%clk 0:00:16]}  Qe5 {[%clk 0:00:05]} 20. Nf3 {[%clk 0:00:14]}  Qd6 {[%clk 0:00:03]} 21. Bxb7 {[%clk 0:00:05]}  Rab8 {[%clk 0:00:00]} 22. h3 {[%clk 0:00:04]} 1-0


[Site "https://www.chess.com"]